[Event "*** Titled Tuesday Blitz"]
[Site "Chess.com"]
[Date "2018.04.03"]
[Round "4"]
[White "lucasran"]
[Black "Bauxi435"]
[Result "1-0"]
[WhiteElo "2407"]
[BlackElo "2439"]
[TimeControl "180+2"]
[EndTime "13:54:24 PDT"]
[Termination "lucasran won by checkmate"]

1. d4 {[%clk 0:03:01.9]} 1... Nf6 {[%clk 0:02:59.4]} 2. c4 {[%clk 0:03:02.4]}
2... e6 {[%clk 0:03:00.4]} 3. Nc3 {[%clk 0:03:03]} 3... d5 {[%clk 0:03:01.9]} 4.
Bg5 {[%clk 0:03:02.9]} 4... Be7 {[%clk 0:02:58.5]} 5. e3 {[%clk 0:03:02.1]} 5...
a6 {[%clk 0:02:58.3]} 6. cxd5 {[%clk 0:02:55.4]} 6... Nxd5 {[%clk 0:02:53.8]} 7.
Bxe7 {[%clk 0:02:54.9]} 7... Qxe7 {[%clk 0:02:52.6]} 8. Nxd5 {[%clk 0:02:55.4]}
8... exd5 {[%clk 0:02:54.5]} 9. Nf3 {[%clk 0:02:55.3]} 9... Bf5 {[%clk
0:02:51.2]} 10. Rc1 {[%clk 0:02:54.7]} 10... c6 {[%clk 0:02:51.4]} 11. Be2
{[%clk 0:02:54.8]} 11... O-O {[%clk 0:02:51.6]} 12. O-O {[%clk 0:02:55.6]} 12...
Nd7 {[%clk 0:02:52.1]} 13. Qb3 {[%clk 0:02:53.9]} 13... Rab8 {[%clk 0:02:40.2]}
14. a4 {[%clk 0:02:52.1]} 14... a5 {[%clk 0:02:35.8]} 15. Ne1 {[%clk 0:02:42.2]}
15... Nf6 {[%clk 0:02:20.2]} 16. Nd3 {[%clk 0:02:22.8]} 16... Ne4 {[%clk
0:02:17.7]} 17. Rfd1 {[%clk 0:02:21.9]} 17... Rfc8 {[%clk 0:02:11.6]} 18. Qb6
{[%clk 0:02:13.6]} 18... Re8 {[%clk 0:02:05.6]} 19. Qxa5 {[%clk 0:01:48.6]}
19... Ra8 {[%clk 0:01:57.6]} 20. Qb6 {[%clk 0:01:24.4]} 20... Rxa4 {[%clk
0:01:57.1]} 21. Ra1 {[%clk 0:01:13.6]} 21... Rea8 {[%clk 0:01:51.8]} 22. Rxa4
{[%clk 0:01:14]} 22... Rxa4 {[%clk 0:01:53.7]} 23. Qb3 {[%clk 0:00:49.4]} 23...
Ra8 {[%clk 0:01:49.1]} 24. Re1 {[%clk 0:00:45.6]} 24... g6 {[%clk 0:01:45.2]}
25. Rc1 {[%clk 0:00:46.1]} 25... h5 {[%clk 0:01:45.4]} 26. h3 {[%clk 0:00:45.9]}
26... Kg7 {[%clk 0:01:31.1]} 27. Qd1 {[%clk 0:00:38.9]} 27... Qg5 {[%clk
0:01:25.3]} 28. Kh2 {[%clk 0:00:36.2]} 28... Qh4 {[%clk 0:01:21.5]} 29. Kg1
{[%clk 0:00:33.2]} 29... Qe7 {[%clk 0:01:10.9]} 30. Ra1 {[%clk 0:00:32.6]} 30...
Rxa1 {[%clk 0:01:10.2]} 31. Qxa1 {[%clk 0:00:33]} 31... h4 {[%clk 0:01:09.7]}
32. Qc1 {[%clk 0:00:26.1]} 32... Ng5 {[%clk 0:01:07.5]} 33. Nf4 {[%clk 0:00:24]}
33... Ne4 {[%clk 0:01:05]} 34. Nd3 {[%clk 0:00:24.7]} 34... g5 {[%clk
0:01:05.5]} 35. Nc5 {[%clk 0:00:25.3]} 35... Nd6 {[%clk 0:01:05.6]} 36. Bd3
{[%clk 0:00:24]} 36... Be4 {[%clk 0:00:57.3]} 37. Nxe4 {[%clk 0:00:24.2]} 37...
dxe4 {[%clk 0:00:58.2]} 38. Be2 {[%clk 0:00:25.3]} 38... f5 {[%clk 0:00:59.1]}
39. Qc5 {[%clk 0:00:25.8]} 39... Kf6 {[%clk 0:00:57.7]} 40. b4 {[%clk
0:00:26.9]} 40... Nf7 {[%clk 0:00:57.7]} 41. Qc4 {[%clk 0:00:25.9]} 41... Qe6
{[%clk 0:00:50.1]} 42. Qc5 {[%clk 0:00:24.7]} 42... Qd6 {[%clk 0:00:49.7]} 43.
Qb6 {[%clk 0:00:21.1]} 43... Qd7 {[%clk 0:00:45.7]} 44. b5 {[%clk 0:00:21.7]}
44... Nd6 {[%clk 0:00:42.4]} 45. bxc6 {[%clk 0:00:22.8]} 45... Qxc6 {[%clk
0:00:43.8]} 46. Qd8+ {[%clk 0:00:16.8]} 46... Ke6 {[%clk 0:00:38.5]} 47. Qg8+
{[%clk 0:00:17.5]} 47... Nf7 {[%clk 0:00:39.6]} 48. Qg6+ {[%clk 0:00:18.4]}
48... Ke7 {[%clk 0:00:37.2]} 49. Qxf5 {[%clk 0:00:19.4]} 49... Qc1+ {[%clk
0:00:35.9]} 50. Bf1 {[%clk 0:00:20.4]} 50... Nd6 {[%clk 0:00:35.5]} 51. Qe5+
{[%clk 0:00:20.5]} 51... Kd7 {[%clk 0:00:36]} 52. Qxg5 {[%clk 0:00:20.8]} 52...
Nc4 {[%clk 0:00:34]} 53. Qb5+ {[%clk 0:00:21.6]} 53... Kc7 {[%clk 0:00:34.1]}
54. Qxc4+ {[%clk 0:00:22.6]} 54... Qxc4 {[%clk 0:00:03.5]} 55. Bxc4 {[%clk
0:00:24.5]} 55... Kd6 {[%clk 0:00:05.4]} 56. g3 {[%clk 0:00:23.9]} 56... hxg3
{[%clk 0:00:02.8]} 57. fxg3 {[%clk 0:00:25.8]} 57... b6 {[%clk 0:00:04.3]} 58.
h4 {[%clk 0:00:26.5]} 58... Ke7 {[%clk 0:00:06.1]} 59. g4 {[%clk 0:00:27.3]}
59... Kf6 {[%clk 0:00:08]} 60. Kg2 {[%clk 0:00:28.4]} 60... Kg7 {[%clk
0:00:08.2]} 61. Kg3 {[%clk 0:00:29.4]} 61... Kf6 {[%clk 0:00:09.8]} 62. g5+
{[%clk 0:00:30.3]} 62... Kf5 {[%clk 0:00:07.3]} 63. Bb5 {[%clk 0:00:28.3]} 63...
Kg6 {[%clk 0:00:05.4]} 64. Kg4 {[%clk 0:00:29.6]} 64... Kh7 {[%clk 0:00:06.7]}
65. h5 {[%clk 0:00:30.2]} 65... Kg7 {[%clk 0:00:08.6]} 66. Bc6 {[%clk
0:00:31.1]} 66... Kh7 {[%clk 0:00:09.9]} 67. Bxe4+ {[%clk 0:00:31.9]} 67... Kg7
{[%clk 0:00:11.8]} 68. h6+ {[%clk 0:00:33.3]} 68... Kh8 {[%clk 0:00:13.7]} 69.
Bc6 {[%clk 0:00:33.5]} 69... b5 {[%clk 0:00:15.4]} 70. Bxb5 {[%clk 0:00:34]}
70... Kg8 {[%clk 0:00:16.8]} 71. Kf5 {[%clk 0:00:34.6]} 71... Kh8 {[%clk
0:00:18.7]} 72. g6 {[%clk 0:00:35.7]} 72... Kg8 {[%clk 0:00:19.1]} 73. Bc4+
{[%clk 0:00:36.5]} 73... Kf8 {[%clk 0:00:21]} 74. g7+ {[%clk 0:00:37.7]} 74...
Ke7 {[%clk 0:00:22.9]} 75. g8=Q {[%clk 0:00:38.7]} 75... Kd6 {[%clk 0:00:24.8]}
76. Qe6+ {[%clk 0:00:39.5]} 76... Kc7 {[%clk 0:00:26.7]} 77. Bd5 {[%clk
0:00:37.5]} 77... Kd8 {[%clk 0:00:26.3]} 78. Qf7 {[%clk 0:00:35.1]} 78... Kc8
{[%clk 0:00:02.9]} 79. Bc6 {[%clk 0:00:37]} 79... Kd8 {[%clk 0:00:04.2]} 80.
Qd7# {[%clk 0:00:37.8]} 1-0

[Event "*** Titled Tuesday Blitz"]
[Site "Chess.com"]
[Date "2018.04.03"]
[Round "4"]
[White "SantoBlue"]
[Black "denizozen"]
[Result "0-1"]
[WhiteElo "2613"]
[BlackElo "2640"]
[TimeControl "180+2"]
[EndTime "13:55:56 PDT"]
[Termination "denizozen won by resignation"]

1. e4 {[%clk 0:03:01.9]} 1... e6 {[%clk 0:03:00.6]} 2. d4 {[%clk 0:03:01.4]}
2... d5 {[%clk 0:03:01.4]} 3. Nd2 {[%clk 0:03:03]} 3... c5 {[%clk 0:03:02.5]} 4.
exd5 {[%clk 0:03:04]} 4... Qxd5 {[%clk 0:03:04.4]} 5. dxc5 {[%clk 0:03:01.5]}
5... Bxc5 {[%clk 0:03:06.3]} 6. Ngf3 {[%clk 0:03:00.3]} 6... Nf6 {[%clk
0:03:06.5]} 7. Bc4 {[%clk 0:03:01.2]} 7... Qc6 {[%clk 0:03:07.4]} 8. Qe2 {[%clk
0:02:58.9]} 8... O-O {[%clk 0:03:08]} 9. Nb3 {[%clk 0:02:59.5]} 9... a6 {[%clk
0:03:05.9]} 10. Nxc5 {[%clk 0:02:58.6]} 10... Qxc5 {[%clk 0:03:07.8]} 11. Be3
{[%clk 0:02:56.6]} 11... Qc6 {[%clk 0:03:06.5]} 12. a4 {[%clk 0:02:53.4]} 12...
Nbd7 {[%clk 0:03:07]} 13. O-O {[%clk 0:02:54]} 13... b6 {[%clk 0:03:07.7]} 14.
Nd4 {[%clk 0:02:50.8]} 14... Qc7 {[%clk 0:03:06.8]} 15. c3 {[%clk 0:02:11.1]}
15... Ne5 {[%clk 0:03:02.3]} 16. Bb3 {[%clk 0:02:11]} 16... Neg4 {[%clk
0:03:00.6]} 17. g3 {[%clk 0:02:00.8]} 17... Nxe3 {[%clk 0:02:59.8]} 18. Qxe3
{[%clk 0:02:02.7]} 18... Bb7 {[%clk 0:03:00.5]} 19. Rfe1 {[%clk 0:01:59.3]}
19... Rad8 {[%clk 0:02:53]} 20. Qe5 {[%clk 0:01:46.2]} 20... Qd7 {[%clk
0:02:46.7]} 21. a5 {[%clk 0:01:37.7]} 21... b5 {[%clk 0:02:43.8]} 22. h3 {[%clk
0:01:30.5]} 22... Ba8 {[%clk 0:02:44.5]} 23. Bd1 {[%clk 0:01:16.6]} 23... Nd5
{[%clk 0:02:25.6]} 24. Bf3 {[%clk 0:01:12.3]} 24... Rfe8 {[%clk 0:02:26.7]} 25.
h4 {[%clk 0:01:11.8]} 25... h6 {[%clk 0:02:27.4]} 26. Bg2 {[%clk 0:01:09]} 26...
Nf6 {[%clk 0:02:14.8]} 27. Bxa8 {[%clk 0:01:08.1]} 27... Rxa8 {[%clk 0:02:16.7]}
28. Rad1 {[%clk 0:01:09.2]} 28... Rad8 {[%clk 0:02:17.3]} 29. Rd2 {[%clk
0:00:58.9]} 29... Qd5 {[%clk 0:02:15.6]} 30. Qe2 {[%clk 0:00:54.6]} 30... Qb7
{[%clk 0:01:57]} 31. Rd3 {[%clk 0:00:46.2]} 31... e5 {[%clk 0:01:56.7]} 32. Nf5
{[%clk 0:00:44.7]} 32... Rxd3 {[%clk 0:01:56.9]} 33. Qxd3 {[%clk 0:00:46.6]}
33... Qc7 {[%clk 0:01:50.1]} 34. Qf3 {[%clk 0:00:29.7]} 34... e4 {[%clk
0:01:44]} 35. Qe3 {[%clk 0:00:22.8]} 35... Qxa5 {[%clk 0:01:40.5]} 36. Qa7
{[%clk 0:00:19.2]} 36... Qa2 {[%clk 0:01:36.4]} 37. Nd6 {[%clk 0:00:17.2]} 37...
Rd8 {[%clk 0:01:30.6]} 38. Qc7 {[%clk 0:00:14.5]} 38... Rf8 {[%clk 0:01:07.5]}
39. b4 {[%clk 0:00:09.6]} 39... Qd2 {[%clk 0:01:00.3]} 40. Kf1 {[%clk
0:00:05.6]} 40... Nd5 {[%clk 0:00:56.3]} 41. Qc5 {[%clk 0:00:04.1]} 41... e3
{[%clk 0:00:54.5]} 42. fxe3 {[%clk 0:00:02.6]} 42... Nxc3 {[%clk 0:00:53.4]} 43.
Nf5 {[%clk 0:00:03.1]} 43... Ne4 {[%clk 0:00:54.3]} 44. Ne7+ {[%clk 0:00:03.8]}
44... Kh8 {[%clk 0:00:50.9]} 45. Ng6+ {[%clk 0:00:05]} 45... fxg6+ {[%clk
0:00:52.2]} 46. Qxf8+ {[%clk 0:00:06.1]} 46... Kh7 {[%clk 0:00:54.1]} 47. Qf3
{[%clk 0:00:07.7]} 47... Nf6 {[%clk 0:00:48.2]} 48. e4 {[%clk 0:00:06.2]} 48...
h5 {[%clk 0:00:49.4]} 49. e5 {[%clk 0:00:07.3]} 49... Ng4 {[%clk 0:00:50.6]} 50.
Qe2 {[%clk 0:00:05.3]} 50... Qc3 {[%clk 0:00:47.6]} 51. Kg2 {[%clk 0:00:05.1]}
51... Qxb4 {[%clk 0:00:47]} 52. e6 {[%clk 0:00:05.7]} 52... Qe7 {[%clk
0:00:47.3]} 53. Qe4 {[%clk 0:00:06.7]} 53... b4 {[%clk 0:00:47.2]} 54. Rd1
{[%clk 0:00:04.8]} 54... b3 {[%clk 0:00:42.7]} 55. Rd7 {[%clk 0:00:05.1]} 55...
Qf6 {[%clk 0:00:44.3]} 56. Rd2 {[%clk 0:00:04.2]} 56... Qe7 {[%clk 0:00:42.6]}
57. Re2 {[%clk 0:00:05.1]} 57... a5 {[%clk 0:00:39.6]} 58. Qa4 {[%clk
0:00:04.2]} 58... Qb7+ {[%clk 0:00:40.4]} 59. Qe4 {[%clk 0:00:05.3]} 59... Qe7
{[%clk 0:00:30.4]} 60. Qa4 {[%clk 0:00:05.9]} 60... Qb7+ {[%clk 0:00:31.1]} 61.
Qe4 {[%clk 0:00:07.4]} 61... Qe7 {[%clk 0:00:32.2]} 62. Rb2 {[%clk 0:00:08.7]}
62... Qa3 {[%clk 0:00:32.1]} 63. Rd2 {[%clk 0:00:07.8]} 63... Qe7 {[%clk
0:00:31.9]} 64. Rd7 {[%clk 0:00:08.6]} 64... Qf6 {[%clk 0:00:31.6]} 65. Rd2
{[%clk 0:00:08.7]} 65... b2 {[%clk 0:00:31.2]} 66. e7 {[%clk 0:00:06.8]} 66...
b1=Q {[%clk 0:00:30]} 67. Qxb1 {[%clk 0:00:06.8]} 67... Qxe7 {[%clk 0:00:31.1]}
68. Qd3 {[%clk 0:00:06.5]} 68... a4 {[%clk 0:00:31]} 69. Qf3 {[%clk 0:00:06.2]}
69... Qb4 {[%clk 0:00:29.6]} 70. Re2 {[%clk 0:00:06.4]} 70... Qd4 {[%clk
0:00:29]} 71. Qf4 {[%clk 0:00:04.4]} 71... Qa7 {[%clk 0:00:27.4]} 72. Ra2 {[%clk
0:00:04.5]} 72... Qb7+ {[%clk 0:00:28.4]} 73. Qf3 {[%clk 0:00:04.4]} 73... Qa7
{[%clk 0:00:29.3]} 74. Qa3 {[%clk 0:00:04.6]} 74... Qb7+ {[%clk 0:00:29.6]} 75.
Qf3 {[%clk 0:00:06.2]} 75... Ne3+ {[%clk 0:00:30.4]} 76. Kf2 {[%clk 0:00:06.6]}
76... Ng4+ {[%clk 0:00:29.6]} 77. Kg2 {[%clk 0:00:08.1]} 77... Qb4 {[%clk
0:00:28.6]} 78. Qf4 {[%clk 0:00:06.4]} 78... Qb3 {[%clk 0:00:23.8]} 79. Qxa4
{[%clk 0:00:07.1]} 79... Qd5+ {[%clk 0:00:24.7]} 80. Kg1 {[%clk 0:00:07.5]}
80... Qc5+ {[%clk 0:00:21.8]} 81. Kg2 {[%clk 0:00:08.6]} 81... Qd5+ {[%clk
0:00:22.9]} 82. Kg1 {[%clk 0:00:09.5]} 82... Qf3 {[%clk 0:00:24.5]} 83. Qf4
{[%clk 0:00:08.6]} 83... Qd1+ {[%clk 0:00:25.2]} 84. Qf1 {[%clk 0:00:08]} 84...
Qd4+ {[%clk 0:00:25.2]} 85. Kh1 {[%clk 0:00:09.3]} 85... Qd5+ {[%clk 0:00:26]}
86. Qg2 {[%clk 0:00:10.1]} 86... Qd1+ {[%clk 0:00:25.5]} 87. Qg1 {[%clk
0:00:11.4]} 87... Qb3 {[%clk 0:00:22.4]} 88. Rg2 {[%clk 0:00:11.8]} 88... Qf3
{[%clk 0:00:23]} 89. Qe1 {[%clk 0:00:06]} 89... Ne3 {[%clk 0:00:23.6]} 90. Qf2
{[%clk 0:00:07.5]} 90... Qd1+ {[%clk 0:00:21.5]} 91. Rg1 {[%clk 0:00:07.2]}
91... Qd5+ {[%clk 0:00:23]} 92. Rg2 {[%clk 0:00:08.5]} 92... Qe4 {[%clk
0:00:23.7]} 93. Kg1 {[%clk 0:00:09]} 93... Nxg2 {[%clk 0:00:24.8]} 94. Qxg2
{[%clk 0:00:10.1]} 94... Qxg2+ {[%clk 0:00:26.4]} 95. Kxg2 {[%clk 0:00:12]}
95... g5 {[%clk 0:00:28.1]} 96. Kf3 {[%clk 0:00:07.7]} 96... Kg6 {[%clk
0:00:28.7]} 97. Ke4 {[%clk 0:00:09.1]} 97... Kf6 {[%clk 0:00:28.7]} 98. hxg5+
{[%clk 0:00:05]} 98... Kxg5 {[%clk 0:00:30.6]} 99. Ke3 {[%clk 0:00:06.1]} 99...
Kg4 {[%clk 0:00:31.6]} 100. Kf2 {[%clk 0:00:07.1]} 100... h4 {[%clk 0:00:30.1]}
101. gxh4 {[%clk 0:00:06.4]} 101... Kxh4 {[%clk 0:00:32]} 0-1

[Event "*** Titled Tuesday Blitz"]
[Site "Chess.com"]
[Date "2018.04.03"]
[Round "4"]
[White "amintabatabaei"]
[Black "Keranke"]
[Result "1-0"]
[WhiteElo "2650"]
[BlackElo "2612"]
[TimeControl "180+2"]
[EndTime "13:56:10 PDT"]
[Termination "amintabatabaei won by resignation"]

1. e4 {[%clk 0:03:01.9]} 1... g6 {[%clk 0:03:00.5]} 2. d4 {[%clk 0:02:57.2]}
2... Bg7 {[%clk 0:03:01.3]} 3. Nf3 {[%clk 0:02:58.8]} 3... d6 {[%clk 0:03:02.8]}
4. Bc4 {[%clk 0:02:59.4]} 4... Nf6 {[%clk 0:03:04]} 5. Qe2 {[%clk 0:03:00.4]}
5... O-O {[%clk 0:03:05.5]} 6. O-O {[%clk 0:03:00.9]} 6... c6 {[%clk 0:03:06]}
7. Bb3 {[%clk 0:03:01.7]} 7... Qc7 {[%clk 0:03:06.1]} 8. Rd1 {[%clk 0:02:58]}
8... e5 {[%clk 0:03:02.8]} 9. dxe5 {[%clk 0:02:55.2]} 9... dxe5 {[%clk
0:03:04.7]} 10. Nbd2 {[%clk 0:02:54.2]} 10... b5 {[%clk 0:02:52.8]} 11. a4
{[%clk 0:02:53.9]} 11... a6 {[%clk 0:02:53.6]} 12. Nf1 {[%clk 0:02:48.7]} 12...
Nbd7 {[%clk 0:02:50.3]} 13. axb5 {[%clk 0:02:32.6]} 13... cxb5 {[%clk
0:02:52.2]} 14. Ne3 {[%clk 0:02:32.7]} 14... Nc5 {[%clk 0:02:34.5]} 15. Nd5
{[%clk 0:02:31.3]} 15... Nxd5 {[%clk 0:02:35.5]} 16. Bxd5 {[%clk 0:02:33.2]}
16... Bb7 {[%clk 0:02:36.4]} 17. Bg5 {[%clk 0:02:10.9]} 17... h6 {[%clk
0:02:29.7]} 18. Bh4 {[%clk 0:02:11]} 18... Bxd5 {[%clk 0:02:22.2]} 19. Rxd5
{[%clk 0:02:00.9]} 19... Ne6 {[%clk 0:02:22.5]} 20. Bg3 {[%clk 0:02:00.7]} 20...
Nf4 {[%clk 0:02:23]} 21. Bxf4 {[%clk 0:02:01.5]} 21... exf4 {[%clk 0:02:24.9]}
22. e5 {[%clk 0:01:58.9]} 22... Rac8 {[%clk 0:02:11.8]} 23. c3 {[%clk 0:01:57]}
23... Qb7 {[%clk 0:02:04.2]} 24. Rad1 {[%clk 0:01:55]} 24... Rfe8 {[%clk
0:01:44.5]} 25. h4 {[%clk 0:01:51.6]} 25... Rc6 {[%clk 0:01:35]} 26. Rd7 {[%clk
0:01:47.6]} 26... Rc7 {[%clk 0:01:35.9]} 27. R7d4 {[%clk 0:01:43.2]} 27... Rce7
{[%clk 0:01:32.4]} 28. Rd8 {[%clk 0:01:28.9]} 28... Rxd8 {[%clk 0:01:26.3]} 29.
Rxd8+ {[%clk 0:01:30.8]} 29... Kh7 {[%clk 0:01:27.9]} 30. h5 {[%clk 0:01:27.8]}
30... Qc7 {[%clk 0:01:22.5]} 31. hxg6+ {[%clk 0:01:12.1]} 31... fxg6 {[%clk
0:01:24.4]} 32. Rd5 {[%clk 0:01:13]} 32... Qc8 {[%clk 0:01:14.8]} 33. Qe4 {[%clk
0:01:10.9]} 33... Qg4 {[%clk 0:00:59.7]} 34. Rd6 {[%clk 0:01:10.8]} 34... a5
{[%clk 0:00:54.7]} 35. Rd5 {[%clk 0:01:11.3]} 35... b4 {[%clk 0:00:49.1]} 36.
Rxa5 {[%clk 0:01:13.2]} 36... bxc3 {[%clk 0:00:49.8]} 37. bxc3 {[%clk
0:01:15.1]} 37... Rd7 {[%clk 0:00:37.1]} 38. Rd5 {[%clk 0:01:11.2]} 38... Ra7
{[%clk 0:00:35.8]} 39. Rd1 {[%clk 0:00:52.8]} 39... Re7 {[%clk 0:00:33.6]} 40.
Re1 {[%clk 0:00:49.1]} 40... h5 {[%clk 0:00:32.4]} 41. c4 {[%clk 0:00:46.2]}
41... h4 {[%clk 0:00:32.2]} 42. Kh2 {[%clk 0:00:47.1]} 42... Kh6 {[%clk
0:00:23.9]} 43. c5 {[%clk 0:00:42.6]} 43... Rc7 {[%clk 0:00:15.2]} 44. e6 {[%clk
0:00:40.3]} 44... Bf8 {[%clk 0:00:11.7]} 45. Ne5 {[%clk 0:00:32.1]} 45... Qxe6
{[%clk 0:00:12.1]} 46. Qxf4+ {[%clk 0:00:29.7]} 46... Kg7 {[%clk 0:00:12.9]} 47.
Ng4 {[%clk 0:00:14.4]} 47... Qf7 {[%clk 0:00:13.9]} 48. Qe5+ {[%clk 0:00:14.4]}
48... Kh7 {[%clk 0:00:11.6]} 49. Nf6+ {[%clk 0:00:16.3]} 49... Kh6 {[%clk
0:00:10.5]} 50. Ne4 {[%clk 0:00:10.1]} 50... Re7 {[%clk 0:00:08.5]} 51. Qg5+
{[%clk 0:00:11]} 51... Kg7 {[%clk 0:00:09.6]} 52. Qxh4 {[%clk 0:00:12.4]} 52...
Qf5 {[%clk 0:00:09.8]} 53. f3 {[%clk 0:00:12.6]} 53... Re5 {[%clk 0:00:09.8]}
54. Qf2 {[%clk 0:00:12.1]} 54... Bxc5 {[%clk 0:00:08.7]} 55. Nxc5 {[%clk
0:00:13.2]} 55... Rxc5 {[%clk 0:00:10.6]} 56. Qd4+ {[%clk 0:00:14.5]} 56... Kf7
{[%clk 0:00:09]} 57. Re4 {[%clk 0:00:11.4]} 57... Qh5+ {[%clk 0:00:08.5]} 58.
Kg1 {[%clk 0:00:07.9]} 58... Rc1+ {[%clk 0:00:09.5]} 59. Kf2 {[%clk 0:00:09.2]}
59... Qc5 {[%clk 0:00:11]} 60. Qxc5 {[%clk 0:00:09.1]} 60... Rxc5 {[%clk
0:00:12.9]} 61. Kg3 {[%clk 0:00:10.4]} 61... Kf6 {[%clk 0:00:13.8]} 62. Ra4
{[%clk 0:00:11.2]} 62... Rb5 {[%clk 0:00:15]} 63. Kf4 {[%clk 0:00:10.2]} 63...
Rb6 {[%clk 0:00:15.5]} 64. g4 {[%clk 0:00:10.5]} 64... g5+ {[%clk 0:00:15.9]}
65. Kg3 {[%clk 0:00:11.8]} 65... Kg6 {[%clk 0:00:16.1]} 66. Ra5 {[%clk
0:00:12.9]} 66... Rc6 {[%clk 0:00:17.2]} 67. Ra4 {[%clk 0:00:14.1]} 67... Rb6
{[%clk 0:00:18.6]} 68. Kf2 {[%clk 0:00:15.4]} 68... Re6 {[%clk 0:00:17.5]} 69.
Re4 {[%clk 0:00:15.2]} 69... Ra6 {[%clk 0:00:17.6]} 70. Rd4 {[%clk 0:00:16.2]}
70... Rb6 {[%clk 0:00:17.8]} 71. Ke3 {[%clk 0:00:17]} 71... Ra6 {[%clk
0:00:19.2]} 72. Rd5 {[%clk 0:00:15]} 72... Re6+ {[%clk 0:00:17.6]} 73. Kd4
{[%clk 0:00:15.9]} 73... Rf6 {[%clk 0:00:14.4]} 74. Ke4 {[%clk 0:00:17]} 74...
Rf4+ {[%clk 0:00:15.1]} 75. Ke3 {[%clk 0:00:17.5]} 75... Rf6 {[%clk 0:00:16.4]}
76. Re5 {[%clk 0:00:18.3]} 76... Ra6 {[%clk 0:00:16.5]} 77. Rd5 {[%clk
0:00:19.1]} 77... Re6+ {[%clk 0:00:17]} 78. Kd3 {[%clk 0:00:18.2]} 78... Rf6
{[%clk 0:00:17.7]} 79. Ke2 {[%clk 0:00:17.6]} 79... Re6+ {[%clk 0:00:18.5]} 80.
Kf2 {[%clk 0:00:19]} 80... Ra6 {[%clk 0:00:20]} 81. Rd2 {[%clk 0:00:19.5]} 81...
Rb6 {[%clk 0:00:20.9]} 82. Ra2 {[%clk 0:00:20.2]} 82... Rc6 {[%clk 0:00:22.1]}
83. Ra4 {[%clk 0:00:20]} 83... Rb6 {[%clk 0:00:23.3]} 84. Ke3 {[%clk 0:00:20.3]}
84... Re6+ {[%clk 0:00:22.2]} 85. Re4 {[%clk 0:00:20.9]} 85... Ra6 {[%clk
0:00:23.7]} 86. Re5 {[%clk 0:00:20.5]} 86... Rf6 {[%clk 0:00:18.3]} 87. Rc5
{[%clk 0:00:17.4]} 87... Re6+ {[%clk 0:00:17.7]} 88. Kd4 {[%clk 0:00:18.5]}
88... Rf6 {[%clk 0:00:18.8]} 89. Rc3 {[%clk 0:00:18.8]} 89... Ra6 {[%clk
0:00:09]} 90. Kd5 {[%clk 0:00:19.3]} 90... Ra5+ {[%clk 0:00:09.2]} 91. Kd6
{[%clk 0:00:13.3]} 91... Kf6 {[%clk 0:00:07.5]} 92. Rc6 {[%clk 0:00:13.2]} 92...
Rb5 {[%clk 0:00:02.3]} 93. Ra6 {[%clk 0:00:13.5]} 93... Rb3 {[%clk 0:00:03.2]}
94. Kd5+ {[%clk 0:00:14.3]} 94... Kg7 {[%clk 0:00:04.7]} 95. Ke4 {[%clk
0:00:16]} 95... Rb5 {[%clk 0:00:05.9]} 96. Rd6 {[%clk 0:00:16]} 96... Kf7 {[%clk
0:00:06.7]} 97. Rd5 {[%clk 0:00:16.8]} 97... Rb4+ {[%clk 0:00:08.1]} 98. Kf5
{[%clk 0:00:15.6]} 98... Rf4+ {[%clk 0:00:08.6]} 99. Kxg5 {[%clk 0:00:16.9]}
99... Rxf3 {[%clk 0:00:10.5]} 100. Rf5+ {[%clk 0:00:18.1]} 100... Rxf5+ {[%clk
0:00:10.2]} 101. Kxf5 {[%clk 0:00:20]} 101... Kg7 {[%clk 0:00:10.9]} 102. Kg5
{[%clk 0:00:21.2]} 102... Kf7 {[%clk 0:00:12.4]} 103. Kh6 {[%clk 0:00:22.2]} 1-0